Cogmind - Beta 12 @@@ ROGUE MODE // 2024.01.29 @ 09:31:37 Player: Treadwheel Result: Destroyed by G-34 Mercenary with Small Laser Performance ------------- Evolutions (1) 500 Regions Visited (2) 400 Robots Destroyed (33) 165 Value Destroyed (816) 816 Prototype IDs (4) 80 Alien Tech Used (0) 0 Bonus (8) 8 TOTAL SCORE: 1969 Bonus ------- High Alert Combat Kills 8 Cogmind --------- Core Integrity 0/400 Matter 273/300 Energy 46/100 System Corruption 0% Temperature Critical (536) Movement Core (100) Ox1 Location -9/Materials Parts ------- > --- POWER (1) -------- (None) > --- PROPULSION (3) --- (None) > --- UTILITY (2) ------ Signal Interpreter > --- WEAPON (3) ------- Particle Gun Particle Gun > --- INVENTORY (5) ---- Ion Engine Cooling System Sensor Array Grenade Launcher Peak State ------------ > --- POWER ------------ Light Nuclear Core > --- PROPULSION ------- Improved Aluminum Leg Improved Aluminum Leg Improved Aluminum Leg > --- UTILITY ---------- Signal Interpreter Hardened Light Armor Plating > --- WEAPON ----------- Advanced Beam Cannon Autogun Autogun > --- INVENTORY -------- Improved Aluminum Leg Cooling System Sensor Array Grenade Launcher Rocket Launcher [Rating: 19] Favorites ----------- Power Light Nuclear Core Engine Light Ion Engine Power Core Light Nuclear Core Propulsion Improved Aluminum Leg Leg Improved Aluminum Leg Utility Signal Interpreter Device Sensor Array Storage Medium Matter Pod Processor Signal Interpreter Protection Core Shielding Weapon Autogun Energy Gun Small Laser Energy Cannon Advanced Beam Cannon Ballistic Gun Autogun Launcher Rocket Launcher Build | -11 -10 -9 ------- Run | Jun Mat Mat Slots Evolved 2 | . . 2 Power . | . . . Propulsion 1 | . . 1 Utility . | . . . Weapon 1 | . . 1 Parts Attached 38 | 5 14 19 Power 5 | 1 3 1 Engine 4 | 1 2 1 Core 1 | . 1 . Reactor . | . . . Propulsion 11 | 2 3 6 Treads . | . . . Leg 11 | 2 3 6 Wheel . | . . . Hover . | . . . Flight . | . . . Utility 12 | . 6 6 Device 5 | . 3 2 Storage 1 | . . 1 Processor 2 | . 2 . Hackware . | . . . Protection 4 | . 1 3 Artifact . | . . . Weapon 10 | 2 2 6 Energy Gun 4 | 1 . 3 Energy Cannon 1 | . . 1 Ballistic Gun 4 | 1 2 1 Ballistic Cannon . | . . . Launcher 1 | . . 1 Special Weapon . | . . . Impact Weapon . | . . . Slashing Weapon . | . . . Piercing Weapon . | . . . Special Melee Weapon . | . . . Unidentified Prototypes 1 | . . 1 Parts Lost 12 | . . 12 Power 1 | . . 1 Propulsion 5 | . . 5 Utility 1 | . . 1 Weapon 5 | . . 5 Highest Loss Streak 12 | . . 12 To Critical Strikes . | . . . Average Slot Usage (%) 92 | . 90 94 Engine 6 | . 9 . Core 6 | . 4 10 Leg 29 | . 28 32 Device 10 | . 12 6 Processor 7 | . 5 11 Protection 2 | . 1 4 Energy Gun 5 | . 8 . Energy Cannon 2 | . . 7 Ballistic Gun 20 | . 19 21 Naked Turns . | . . . Heaviest Build 20 | 6 13 20 Greatest Support 39 | 20 26 39 Greatest Overweight (x) 3 | . . 3 Average Overweight (x) . | . . . Largest Inventory Capacity 5 | 5 5 5 Average Capacity 5 | 5 5 5 Most Carried 5 | 4 5 5 Average Carried 4 | 2 4 4 Final Capacity 5 | 5 5 5 Final Carried 5 | 4 5 4 Class Distribution -------------------- 75% | Mutant 13% | Tank 10% | Skirmisher Dominant Class ---------------- Mutant | -10/Materials Tank | -9/Materials Resources | -11 -10 -9 ----------- Run | Jun Mat Mat Matter Collected 1000 | 271 320 409 Remotely . | . . . Salvage Created 999 | 41 359 599 Parts 85 | 1 39 45 Haulers Intercepted . | . . . Recyclers Shooed . | . . . Parts Field Recycled . | . . . Retrieved Matter . | . . . Parts Self-Destructed . | . . . Prevented . | . . . Kills | -11 -10 -9 ------- Run | Jun Mat Mat Combat Hostiles Destroyed 25 | 1 11 13 Guns 20 | 1 11 8 Cannons 4 | . . 4 AOE 1 | . . 1 Classes Destroyed 7 | 1 2 4 Worker 1 | . . 1 Recycler 1 | . . 1 Operator 1 | . . 1 Watcher 5 | . 3 2 Swarmer 9 | . 6 3 Grunt 13 | 1 5 7 Sentry 3 | . . 3 Best Kill Streak 9 | 1 4 9 Combat Bots Only 7 | 1 3 7 Max Kills in Single Turn 3 | 1 2 3 Gunslinging 1 | . 1 . Exploded 1 | . . 1 Melee . | . . . Uniques/NPCs Destroyed . | . . . Combat | -11 -10 -9 -------- Run | Jun Mat Mat Damage Taken 2023 | 65 379 1579 Core 526 | . 116 410 Absorbed by Shields . | . . . Redirected to Shielding 11 | . 4 7 Core Remaining (%) 76 | 100 53 . Volleys Fired 72 | 7 32 33 Largest 3 | 2 2 3 Hottest 163 | 60 63 163 Shots Fired 160 | 14 63 83 Gun 140 | 14 63 63 Cannon 19 | . . 19 Launcher 1 | . . 1 Special . | . . . Kinetic 110 | 7 44 59 Thermal 49 | 7 19 23 Explosive 1 | . . 1 Electromagnetic . | . . . Robot Hit Streak 15 | 8 6 15 Robot Miss Streak 4 | 1 2 4 Penetration Max . | . . . Secondary Targets 2 | . 2 . Max Gunslinging Chain 1 | . 1 . Shots Hit Robots 95 | 11 38 46 Core Hits 47 | 2 19 26 Critical Kills . | . . . Critical Parts Destroyed . | . . . Critical Strikes . | . . . Melee Attacks . | . . . Impact . | . . . Slashing . | . . . Piercing . | . . . Sneak Attacks . | . . . Combat Hostiles . | . . . Follow-up Attacks . | . . . Damage Inflicted 1702 | 128 538 1036 Guns 1291 | 128 538 625 Cannons 183 | . . 183 Explosions 228 | . . 228 Melee . | . . . Ramming . | . . . Kinetic 1078 | 76 408 594 Thermal 396 | 52 130 214 Explosive 228 | . . 228 Electromagnetic . | . . . Impact . | . . . Slashing . | . . . Piercing . | . . . Highest Corruption 1 | . 1 . Average Corruption 1 | . 1 . Corruption Purged . | . . . Corruption Blocked . | . . . Effects 7 | . 7 . Message Errors 1 | . 1 . Matter Fused 3 | . 3 . Energy Discharges 1 | . 1 . Data Loss (minor) 1 | . 1 . Weapon Failures 1 | . 1 . Overload Shots . | . . . Overflow Damage . | . . . Projectiles . | . . . Explosions . | . . . Melee . | . . . Knockbacks . | . . . Impact . | . . . Kinetic . | . . . Secondary . | . . . Self-Inflicted Damage . | . . . Shots . | . . . Rammed . | . . . Targets Rammed . | . . . Kicked . | . . . Crushed . | . . . Highest Temperature 569 | 36 35 569 Average Temperature 113 | 19 10 175 Received Heat Transfer 804 | 36 99 669 Effects 3 | . . 3 Short Circuit 2 | . . 2 Damage (minor) 1 | . . 1 Siege Activations . | . . . Robots Corrupted . | . . . Combat Hostiles . | . . . Parts Fried . | . . . Impact Corruptions . | . . . Robots Melted . | . . . Combat Hostiles . | . . . Parts Melted . | . . . Heat Transferred 832 | 125 300 407 Parts Sabotaged . | . . . Parts Stolen . | . . . Parts Stripped . | . . . Power Chain Reactions . | . . . Missiles Intercepted . | . . . Alert | -11 -10 -9 ------- Run | Jun Mat Mat Peak Influence 415 | 20 238 415 Initial 100 | . 13 100 Average 138 | 1 96 245 Maximum Alert Level 2 | . 1 2 Low Security (%) 70 | 100 91 24 Level 1 29 | . 8 72 Level 2 . | . . 2 Level 3 . | . . . Level 4 . | . . . Level 5 . | . . . High Security . | . . . Max Security . | . . . Squads Dispatched 5 | . 3 2 Investigation 2 | . 1 1 Extermination . | . . . Reinforcement 3 | . 2 1 Assault . | . . . Garrison . | . . . Intercept . | . . . Searches Triggered . | . . . Construction Impeded . | . . . Haulers Reinforced . | . . . Active Scanning Responses . | . . . Cargo Convoy Interrupts . | . . . Stealth | -11 -10 -9 --------- Run | Jun Mat Mat Distress Signals 5 | . 2 3 Communications Jammed . | . . . Distress Signals . | . . . Times Spotted 44 | 1 17 26 Peak Tracking Total 14 | 1 5 14 Tactical Retreats 2 | . . 2 Traps | -11 -10 -9 ------- Run | Jun Mat Mat Traps Triggered 2 | . 1 1 Indirectly . | . . . Trap Hack Attempts . | . . . Triggered . | . . . Disarmed . | . . . Reprogrammed . | . . . Reused . | . . . Traps Extracted . | . . . Installed . | . . . Triggered . | . . . Machines | -11 -10 -9 ---------- Run | Jun Mat Mat Machines Disabled 2 | . 1 1 Max in Single Turn 1 | . 1 1 Machines Repaired . | . . . Machines Sabotaged . | . . . Overloaded Fab Kills . | . . . Hacking | -11 -10 -9 --------- Run | Jun Mat Mat Machines Accessed 10 | . 6 4 Terminals 7 | . 5 2 Fabricators . | . . . Repair Stations 1 | . . 1 Recycling Units 1 | . 1 . Scanalyzers 1 | . . 1 Garrison Access . | . . . Total Hacks 28 | . 17 11 Successful 18 | . 8 10 Failed 10 | . 9 1 Catastrophic . | . . . Database Lockouts . | . . . Manual . | . . . Terminals 20 | . 14 6 Fabricators . | . . . Repair Stations 1 | . . 1 Recycling Units 3 | . 3 . Scanalyzers 4 | . . 4 Garrison Access . | . . . Terminal Hacks 12 | . 6 6 Record 7 | . 3 4 Prototype ID Bank 2 | . 1 1 Locate Traps 1 | . 1 . Dispatch Records 1 | . 1 . Zone Layout 1 | . . 1 Fabricator Hacks . | . . . Repair Station Hacks . | . . . Recycling Unit Hacks 2 | . 2 . Report Inventory 1 | . 1 . Retrieve Components 1 | . 1 . Scanalyzer 4 | . . 4 Insert Component 2 | . . 2 Analyze 2 | . . 2 Garrison Access Hacks . | . . . Unauthorized Hacks . | . . . Terminals . | . . . Fabricators . | . . . Repair Stations . | . . . Recycling Units . | . . . Scanalyzers . | . . . Garrison Access . | . . . Data Cores Recovered . | . . . Used . | . . . Hacking Detections 10 | . 6 4 Full Trace Events 3 | . 2 1 Feedback Events 1 | . 1 . Corruption 1 | . 1 . Feedback Blocked . | . . . Robot Schematics Acquired . | . . . Robots Built . | . . . Authchips . | . . . Time . | . . . Total Robot Build Rating . | . . . Part Schematics Acquired 2 | . . 2 Parts Built . | . . . Authchips . | . . . Time . | . . . Total Part Build Rating . | . . . Parts Repaired . | . . . Time . | . . . Parts Recycled . | . . . Recycled Matter . | . . . Retrieved Matter . | . . . Retrieved Components 3 | . 3 . Parts Scanalyzed 2 | . . 2 Part Schematics Acquired 2 | . . 2 Parts Damaged . | . . . Bothacking | -11 -10 -9 ------------ Run | Jun Mat Mat Used RIF Installer . | . . . Robots Hacked . | . . . Non-combat . | . . . Combat . | . . . Robot Hacks Applied . | . . . Relay Couplers Released . | . . . Fabnet Peak Effective % . | . . . Robots Rewired . | . . . Allies Hacked . | . . . Hacks Repelled . | . . . Allies | -11 -10 -9 -------- Run | Jun Mat Mat Total Allies . | . . . Largest Group . | . . . Highest-Rated Group . | . . . Highest-Rated Ally . | . . . Total Orders . | . . . Ally Attacks . | . . . Total Damage . | . . . Kills . | . . . Allies Corrupted . | . . . Allies Melted . | . . . Intel | -11 -10 -9 ------- Run | Jun Mat Mat Robot Analysis Total . | . . . Derelict Logs Recovered . | . . . Drone Launches . | . . . Drone Recoveries . | . . . Exploration | -11 -10 -9 ------------- Run | Jun Mat Mat Turns Passed 1328 | 108 775 445 Spaces Moved 795 | 73 473 249 Core 18 | 16 . 2 Treads . | . . . Legs 777 | 57 473 247 Wheels . | . . . Hover . | . . . Flight . | . . . Fastest Speed 50 | 50 120 100 Average Speed 118 | 104 120 120 Slowest Speed 200 | 120 120 200 Overloaded Moves . | . . . Propulsion Burnouts . | . . . Robots Hopped . | . . . Cave-ins Triggered . | . . . Exploration Rate (%) 31 | 5 67 23 Regions Visited 2 Branch Regions . Pre-discovered Areas . | . . . Known Exits Taken 1 | . 1 . Unknown Exits Taken 1 | 1 . . Scrap Searched . | . . . Spaces Dug . | . . . Terrain Destroyed 8 | . . 8 Melee . | . . . Projectile . | . . . AOE 8 | . . 8 Terrain Rammed . | . . . Walls Destroyed . | . . . Machines Disabled . | . . . Actions | -11 -10 -9 --------- Run | Jun Mat Mat Total 1047 | 88 628 331 Wait 110 | . 87 23 Move 793 | 72 472 249 Hop . | . . . Pick Up 15 | 4 8 3 Fast Attach 15 | 5 3 7 Attach 3 | . . 3 Detach 1 | . . 1 Swap 20 | . 11 9 Drop 18 | . 15 3 Fire 72 | 7 32 33 Melee . | . . . Ram . | . . . Kick . | . . . Crush . | . . . Escape Stasis . | . . . Rewire . | . . . Trap . | . . . Miscellaneous . | . . . Route ------- -11/Junkyard -10/Materials (discovered 2 exits: *Mat / [*Min]) -9/Materials (discovered 1 exit: [*Min]) History --------- Turn | Location | Event 2 | -11/Junkyard | Met Revision 17 74 | -11/Junkyard | Discovered new exit (range 8) 109 | -11/Junkyard | Entered Materials 318 | -10/Materials | Build established: Mutant 555 | -10/Materials | Discovered new exit (range 9) 880 | -10/Materials | Discovered new exit (range 3) 882 | -10/Materials | Identified exit to Materials 884 | -10/Materials | Entered another Materials area 884 | -9/Materials | Evolved 2 slots: Propulsion x1, Weapon x1 1067 | -9/Materials | Discovered new exit (range 15) 1301 | -9/Materials | Core integrity fell below 50% 1320 | -9/Materials | Core integrity fell below 20% 1329 | -9/Materials | Destroyed by G-34 Mercenary with Small Laser Last Messages --------------- 01316_ Imp. Aluminum Leg destroyed. 01316_ K-01 Serf collects debris. 01317_ Acquired Particle Gun. 01318_ K-01 Serf cleans the Neutrino Reactor. 01319_ S-10 Pest destroyed. 01321_ K-01 Serf cleans the Neutrino Reactor. 01322_ Lgt. Assault Rifle destroyed. 01323_ Aluminum Leg destroyed. 01323_ Terminal disabled. 01323_ G-34 Mercenary destroyed. 01323_ K-01 Serf destroyed. 01323_ O-16 Technician destroyed. 01326_ Signal Interpreter broken. 01326_ Overheating: Short circuit. Overweight warning: You are carrying more than your current propulsion can efficiently support, which slows movement; see status page ('s') or the top of the parts list for the specific mass vs. support values. 01327_ K-01 Serf collects debris. 01328_ R-06 Scavenger collects Flight Unit. 01328_ Rocket Launcher destroyed. Map ----- +----------------------------------------------------+ | ?????######## """ """ #?######+#???# #?????# | | ????????????# #?# ???# #?????# """"" | | ????????????####" ""###?# """"" ?###+####??# """"" | | ???????????????#"R""#???# """"" ?# #??# """"" | | ???????????????#""" #??## """"" ?# #??# | | ???????????????######??# ?# #??# """"" | | ???????????????????????## "" ?#! #??# """"" | | ????????????????????????# "" ?# #??# """"" | | ????????????????????????# T" ?# #??# | | ????????????????????????# "" ?# #??####### | | ??????????????########### ""??# #????????? | | ??????????????# """ """ # ??# #????????? | | ??????????????# """ """ #+#+###### #????????? | | ??############# """ """ # # #????????? | | ??# / / # #????????? | | ????????????????????????# = + #????????? | | ????????????????? ???# %=########????????? | | ???????????????? # = [## #????????? | | ???????????????? / !!*=* " #????????? | | ??????????????????+###### !!!=% "T +????????? | | ???????????????? !!! = #????????? | | ???????????????????##### ###### ### #????????? | | ???????????????????????# ?????#!#??# ##????????? | | ???????????????????????#+######+#### #?????????? | | ???????????????????????# r==[%g%%=*#? #?????????? | | ???????????????????????# @= ==%=*= #?? #?????????? | | ???????????????????????# = =%g""" #???#?????????? | | ???????????????????????# Y *[""" #?????????????? | | ??????????????????????# * ! g""" #?????????????? | | ??????????????????????## !g%==k + ????????????? | | ???????????????????????# %=*% # ???????????? | | ???????????????????????#### ### ???????????? | | ??????????????????????????# " #""?? ???????????? | | ??????????????????????????## ##" ? ??????????? | | ????????????????????????????####??! ????????????? | | ??????????????????????????????????? ????????????? | | ?????????????????????????????????????????????????? | | ?????????????????????????????????????????????????? | | ?????????????????????????????????????????????????? | | ?????????????????????????????????????????????????? | | ?????????????????????????????????????????????????? | | ?????????????????????????????????????????????????? | | ?????????????????????????????????????????????????? | | ?????????????????????????????????????????????????? | | ?????????????????????????????????????????????????? | | ?????????????????????????????????????????????????? | | ?????????????????????????????????????????????????? | | ?????????????????????????????????????????????????? | | ?????????????????????????????????????????????????? | | ?????????????????????????????????????????????????? | +----------------------------------------------------+ Best States ------------- Heat Dissipation 35 Energy Generation 14 Energy Capacity 250 Matter Stores 300 Matter Capacity 300 Sight Range 16 Robot Scan Range 14 Terrain Scan Density 10 Armor Coverage 150 Core Shielding 20 Evasion (%) 55 Item Schematics ----------------- Imp. Aluminum Leg | -9/Materials | Scanalyzed Grenade Launcher | -9/Materials | Scanalyzed Robot Schematics ------------------ None Fabricated ------------ Nothing Alien Tech Used ----------------- None Achievements -------------- None Challenges ------------ None Game ------ Seed OpticalThunderAccelerator Manual? 0 Play Time 00:53:09 Cumulative 1.7 hours Start 2023.12.21 @ 14:36:15 End 2024.01.29 @ 09:31:37 Sessions 2 Manual Loads 0 Difficulty Rogue Special Mode None Game No. 1 Rogue 1 Adventurer 0 Explorer 0 Win Type - Total 0 Types 0/0/0/0/0/0/0/0/0 Lore% 1 Gallery% 1 Achievement% 5 Wizard Run 0 Options --------- ASCII 0 Keyboard 0 Movement Mouse Keybinds 0 Fullscreen 1 Font 18/SmallcapsGlow Map View 76x50 Tactical HUD 1 Map Filters NONE Filters NONE Steam 1 RUN: e9127d4d-da76-4a34-95a4-f88884d9c127